bitfinex/quotes_SOLUSD_20250718
["timestamp","ask_amount","ask_price","bid_price","bid_amount"]
[1752851105049,16.3695577,178.38,178.37,3.0]
[1752851105646,30.58,178.4,178.37,3.0]
[1752851105962,46.9495577,178.42,178.37,25.6558127]
[1752851106167,16.78468397,178.42,178.38,17.0495577]
[1752851106343,33.15424167,178.42,178.39,0.68]
[1752851106759,30.58,178.44,178.38,16.3695577]
[1752851106961,16.78468397,178.46,178.42,16.3695577]
[1752851107269,16.78468397,178.46,178.43,0.68]
[1752851107571,33.15424167,178.46,178.41,16.3695577]
[1752851107871,16.78468397,178.46,178.43,16.3695577]
[1752851108053,30.61,178.47,178.43,16.3695577]
[1752851108360,0.03,178.47,178.44,18.6671577]
[1752851108567,0.03,178.47,178.44,1.6176]
[1752851108568,16.3695577,178.46,178.44,1.6176]
[1752851108747,16.3695577,178.45,178.41,6.6576]
[1752851109065,16.78468397,178.46,178.42,17.0495577]
[1752851109271,16.78468397,178.46,178.42,16.3695577]
[1752851109572,33.15424167,178.46,178.42,0.68]
[1752851109861,16.78468397,178.46,178.42,0.68]
[1752851110036,16.78468397,178.46,178.42,17.0495577]
[1752851110237,16.78468397,178.46,178.4,7.22290971]
[1752851110238,16.3695577,178.43,178.4,1.6176]
[1752851110454,16.3695577,178.42,178.4,1.6176]
[1752851110675,16.78468397,178.42,178.4,1.6176]
[1752851110969,0.62,178.45,178.41,0.68]
[1752851110970,52.55341265,178.45,178.41,0.68]
[1752851111340,52.55341265,178.45,178.41,17.0495577]
[1752851111549,30.58,178.45,178.42,17.0495577]
[1752851111964,47.97311952,178.46,178.42,0.68]
[1752851112843,16.3695577,178.45,178.4,17.9871577]
[1752851113053,32.22358277,178.46,178.4,19.51505699]
[1752851113244,43.21569672,178.46,178.41,12.29211395]
[1752851113451,43.21569672,178.46,178.41,11.61211395]
[1752851113652,43.21569672,178.46,178.41,12.29211395]
[1752851114072,16.78468397,178.45,178.42,12.29211395]
[1752851114386,16.78468397,178.45,178.43,0.68]
[1752851114594,28.39679792,178.45,178.4,13.22971395]
[1752851114750,11.61211395,178.43,178.4,1.6176]
[1752851114942,17.21677169,178.43,178.4,1.6176]
[1752851115146,11.61211395,178.43,178.4,1.6176]
[1752851115356,17.21661333,178.43,178.4,1.6176]
[1752851115554,58.95679792,178.45,178.4,19.50503757]
[1752851115762,47.34468397,178.45,178.41,12.28211395]
[1752851115962,47.34468397,178.45,178.42,12.28211395]
[1752851116175,30.56,178.45,178.42,12.28211395]
[1752851116464,26.0,178.46,178.42,12.28211395]
[1752851116860,30.59,178.47,178.43,12.28211395]
[1752851117058,36.19319265,178.47,178.44,0.67]
[1752851117463,0.03,178.47,178.44,0.67]
[1752851117672,0.03,178.47,178.46,11.61211395]
[1752851118166,0.03,178.47,178.46,12.28211395]
[1752851118566,0.03,178.47,178.46,18.92181395]
[1752851118875,0.03,178.51,178.46,20.46851395]
[1752851119081,0.03,178.51,178.5,11.61211395]
[1752851119587,0.03,178.51,178.47,6.16350086]
[1752851119759,0.03,178.51,178.49,11.61211395]
[1752851119959,0.03,178.51,178.48,12.28211395]
[1752851120159,0.03,178.51,178.48,0.67]
[1752851120369,0.03,178.51,178.46,19.79851395]
[1752851120569,0.03,178.51,178.47,11.61211395]
[1752851120781,0.03,178.51,178.47,0.67]
[1752851120977,0.03,178.51,178.5,17.21435484]
[1752851121365,24.6076304,178.52,178.5,17.88435484]
[1752851121574,24.6076304,178.52,178.51,12.28211395]
[1752851122067,0.03,178.55,178.51,12.28211395]
[1752851122259,0.03,178.55,178.54,11.61211395]
[1752851122659,0.03,178.55,178.54,12.28211395]
[1752851125500,11.64211395,178.55,178.5,26.0]
[1752851125685,11.64211395,178.55,178.5,11.61211395]
[1752851125995,11.61211395,178.53,178.48,11.61211395]
[1752851126194,16.78468397,178.54,178.5,11.61211395]
[1752851126576,16.78468397,178.54,178.51,0.67]
[1752851126774,0.03,178.55,178.52,11.61211395]
[1752851126980,0.03,178.55,178.53,11.61211395]
[1752851127178,0.03,178.55,178.54,11.61211395]
[1752851127384,0.03,178.55,178.54,12.28211395]
[1752851127990,0.03,178.55,178.52,12.28211395]
[1752851128179,11.64211395,178.55,178.5,11.61211395]
[1752851128382,28.39679792,178.54,178.49,11.61211395]
[1752851128603,0.03,178.55,178.51,11.61211395]
[1752851128796,16.81468397,178.55,178.52,11.61211395]
[1752851128984,16.81468397,178.55,178.52,12.28211395]
[1752851129188,22.41558879,178.55,178.52,12.28211395]
[1752851129505,11.61211395,178.54,178.47,0.67]
[1752851129797,34.64770274,178.55,178.5,11.61211395]
[1752851130698,34.02770274,178.55,178.5,12.28211395]
[1752851130872,22.41558879,178.55,178.51,0.67]
[1752851131200,22.41558879,178.55,178.52,12.28211395]
[1752851131499,5.63071151,178.55,178.52,12.28211395]
[1752851131798,0.03,178.55,178.53,12.28211395]
[1752851132003,44.63316477,178.59,178.53,0.67]
[1752851132185,11.61211395,178.58,178.54,0.67]
[1752851132382,11.61211395,178.58,178.53,11.61211395]
[1752851132571,56.86527872,178.59,178.54,11.61211395]
[1752851132791,56.86527872,178.59,178.54,12.28211395]
[1752851132991,5.59973121,178.58,178.54,12.28211395]
[1752851133785,88.2,178.58,178.55,12.28211395]
[1752851133984,88.2,178.58,178.57,11.61211395]
[1752851134196,88.2,178.58,178.57,12.28211395]
[1752851135076,0.1,178.62,178.57,17.88198999]
[1752851135276,5.69855562,178.62,178.59,11.61211395]
[1752851135484,0.1,178.62,178.59,12.28211395]
[1752851137096,0.1,178.62,178.6,0.67]
[1752851137384,0.1,178.62,178.59,11.61211395]
[1752851137597,5.69850611,178.62,178.59,12.28211395]
[1752851137799,5.69850611,178.62,178.58,11.61211395]
[1752851138115,6.31850611,178.62,178.58,11.61211395]
[1752851138279,5.69850611,178.62,178.58,11.61211395]
[1752851138484,5.69850611,178.62,178.58,0.67]
[1752851138779,0.1,178.62,178.58,12.28211395]
[1752851138997,0.1,178.62,178.6,11.61211395]
[1752851139388,0.1,178.62,178.6,12.28211395]
[1752851139997,0.1,178.62,178.61,12.28211395]
[1752851140390,0.03,178.63,178.61,13.82351395]
[1752851140576,0.03,178.65,178.62,18.03661395]
[1752851140901,0.03,178.65,178.64,11.61211395]
[1752851141401,0.03,178.65,178.64,12.28211395]
[1752851141787,0.03,178.65,178.64,17.87996437]
[1752851142489,0.03,178.65,178.64,30.05186336]
[1752851142681,0.06,178.67,178.64,30.05186336]
[1752851143000,0.06,178.67,178.66,11.61211395]
[1752851143303,0.06,178.67,178.66,17.20933772]
[1752851143488,0.06,178.67,178.66,19.51903772]
[1752851143687,0.06,178.71,178.66,34.07181953]
[1752851143892,0.06,178.71,178.7,11.61211395]
[1752851144393,0.06,178.71,178.7,12.28211395]
[1752851144579,0.06,178.71,178.7,18.88651395]
[1752851144991,0.1,178.73,178.72,26.0]
[1752851145193,0.1,178.73,178.72,44.79145862]
[1752851145393,0.1,178.73,178.72,2.254]
[1752851145610,0.1,178.73,178.72,13.86611395]
[1752851145903,0.1,178.73,178.72,1.584]
[1752851146408,0.1,178.73,178.72,13.91611395]
[1752851147087,0.1,178.73,178.72,2.304]
[1752851147288,0.1,178.73,178.7,11.61211395]
[1752851147896,0.1,178.73,178.69,26.72]
[1752851148094,0.1,178.73,178.7,12.33211395]
[1752851148409,0.1,178.73,178.71,11.61211395]
[1752851148608,0.1,178.73,178.71,12.33211395]
[1752851149322,0.1,178.73,178.72,12.33211395]
[1752851151217,0.1,178.73,178.72,17.92745862]
[1752851151916,0.1,178.75,178.73,6.5939]
[1752851152118,0.1,178.75,178.74,13.20161395]
[1752851152427,0.1,178.75,178.74,13.92161395]
[1752851152715,0.1,178.75,178.74,2.3095]
[1752851152909,0.1,178.75,178.74,13.92161395]
[1752851153106,0.1,178.75,178.74,44.38161395]
[1752851153499,0.1,178.75,178.74,2.3095]
[1752851153706,0.1,178.75,178.74,13.92161395]
[1752851154824,0.1,178.75,178.74,19.51633253]
[1752851155223,0.1,178.75,178.74,13.92161395]
[1752851155722,0.1,178.75,178.74,19.51633253]
[1752851157435,0.03,178.78,178.74,7.90421858]
[1752851157615,0.03,178.78,178.77,26.0]
[1752851157820,0.03,178.78,178.77,68.61149192]
[1752851158016,0.03,178.78,178.77,26.0]
[1752851158211,0.03,178.78,178.77,11.61211395]
[1752851158416,0.03,178.78,178.77,12.33211395]
[1752851159029,0.03,178.82,178.79,26.0]
[1752851159212,0.03,178.82,178.81,11.61211395]
[1752851159418,0.03,178.82,178.81,17.20464233]
[1752851159632,0.03,178.82,178.81,17.92464233]
[1752851159843,0.03,178.82,178.79,31.59288145]
[1752851160011,0.03,178.82,178.8,42.05211395]
[1752851160435,0.03,178.82,178.8,42.77211395]
[1752851160638,0.03,178.82,178.81,12.33211395]
[1752851161219,0.03,178.82,178.81,0.72]
[1752851161419,0.03,178.82,178.81,6.31252838]
[1752851162026,0.03,178.82,178.81,17.92464233]
[1752851162636,0.03,178.82,178.81,48.34464233]
[1752851163039,0.03,178.82,178.81,42.75211395]
[1752851163439,54.90480327,178.9,178.84,26.0]
[1752851163440,38.1201193,178.9,178.84,26.0]
[1752851163646,38.1201193,178.9,178.89,11.61211395]
[1752851164362,50.44223325,178.9,178.85,30.42]
[1752851164534,11.61211395,178.89,178.85,30.42]
[1752851164731,11.61211395,178.89,178.84,37.61211395]
[1752851164928,12.32211395,178.89,178.84,37.61211395]
[1752851165138,43.71006387,178.9,178.84,37.61211395]
[1752851165139,55.32217782,178.9,178.86,11.61211395]
[1752851165339,43.71006387,178.9,178.86,11.61211395]
[1752851165544,16.78468397,178.89,178.81,7.9293]
[1752851165735,11.61211395,178.82,178.76,8.2834]
[1752851165947,11.61211395,178.81,178.76,44.2974786]
[1752851166155,11.61211395,178.81,178.76,55.90959255]
[1752851166327,0.71,178.83,178.77,12.33211395]
[1752851166522,11.61211395,178.83,178.78,11.61211395]
[1752851166728,11.61211395,178.82,178.78,12.33211395]
[1752851166953,0.71,178.84,178.78,0.72]
[1752851167136,11.61211395,178.81,178.76,49.59551395]
[1752851167342,11.61211395,178.82,178.77,11.61211395]
[1752851167653,11.61211395,178.81,178.76,55.90955841]
[1752851167834,5.59190292,178.83,178.76,55.90955841]
[1752851167835,5.59190292,178.83,178.77,12.33211395]
[1752851168154,11.61211395,178.82,178.77,12.33211395]
[1752851168370,12.32211395,178.82,178.77,12.33211395]
[1752851168862,12.32211395,178.82,178.76,43.57744446]
[1752851168863,5.59232618,178.82,178.78,0.72]
[1752851169148,11.61211395,178.81,178.76,55.18949377]
[1752851169359,11.61211395,178.79,178.76,38.7034]
[1752851169524,11.61211395,178.8,178.76,32.6653]
[1752851169731,5.59232618,178.82,178.77,0.72]
[1752851170054,11.61211395,178.82,178.78,12.33211395]
[1752851170283,17.20439517,178.82,178.78,0.72]
[1752851171167,11.61211395,178.81,178.77,0.03]
[1752851171690,11.61211395,178.81,178.77,0.75]
[1752851172887,17.20466602,178.81,178.77,0.75]
[1752851173272,11.61211395,178.81,178.77,0.75]
[1752851173479,17.20469978,178.81,178.77,0.75]
[1752851174187,11.61211395,178.8,178.77,0.03]
[1752851174385,0.06,178.83,178.78,0.72]
[1752851174693,0.06,178.83,178.79,0.72]
[1752851174895,11.67211395,178.83,178.79,0.72]
[1752851175066,17.26402015,178.83,178.79,0.72]
[1752851175378,11.67211395,178.83,178.78,17.20554283]
[1752851175693,0.06,178.83,178.8,0.72]
[1752851175991,0.06,178.83,178.82,11.61211395]
[1752851176290,0.06,178.83,178.82,42.68211395]
[1752851178207,0.06,178.83,178.82,48.27432958]
[1752851179280,0.06,178.83,178.82,42.01211395]
[1752851180073,0.06,178.83,178.82,30.4]
[1752851180280,0.06,178.83,178.82,42.01211395]
[1752851180776,0.06,178.83,178.82,42.68211395]
[1752851181170,0.06,178.83,178.82,31.07]
[1752851181399,0.06,178.83,178.82,48.27432958]
[1752851182692,0.06,178.83,178.82,36.66221563]
[1752851183192,0.06,178.83,178.82,48.27432958]
[1752851183494,0.06,178.83,178.82,36.66221563]
[1752851183793,0.06,178.83,178.82,48.27432958]
[1752851184768,0.06,178.83,178.82,49.87092958]
[1752851186208,0.06,178.83,178.82,50.43015114]
[1752851187096,0.06,178.83,178.82,49.87092958]
[1752851187998,0.06,178.83,178.82,44.25871395]
[1752851188192,0.06,178.83,178.82,31.9766]
[1752851188396,0.06,178.83,178.82,43.58871395]
[1752851188909,0.06,178.83,178.82,31.9766]
[1752851189107,0.06,178.83,178.82,41.99211395]
[1752851189290,0.06,178.83,178.82,30.38]
[1752851189489,0.06,178.83,178.82,41.99211395]
[1752851189713,0.06,178.83,178.82,48.25432958]
[1752851190311,0.06,178.83,178.82,41.99211395]
[1752851190906,0.06,178.83,178.8,11.61211395]
[1752851191086,0.66,178.82,178.78,13.23931395]
[1752851191397,12.27211395,178.82,178.79,30.38]
[1752851191595,12.27211395,178.82,178.78,27.6272]
[1752851191905,11.61211395,178.8,178.77,0.03]
[1752851192088,11.61211395,178.78,178.77,0.03]
[1752851192287,17.86558078,178.78,178.77,0.03]
[1752851193400,34.65026475,178.78,178.77,0.03]
[1752851194509,5.59321677,178.79,178.77,0.03]
[1752851194810,105.40500311,178.8,178.77,0.03]
[1752851195011,88.2,178.8,178.77,0.03]
[1752851195588,12.27211395,178.79,178.77,0.03]
[1752851195803,0.66,178.79,178.77,0.03]
[1752851196393,0.66,178.78,178.77,0.03]
[1752851196891,17.20536913,178.79,178.77,0.03]
[1752851197096,5.59289652,178.8,178.77,0.03]
[1752851197817,17.86472756,178.81,178.77,0.03]
[1752851197998,11.61211395,178.8,178.77,0.03]
[1752851198203,12.27211395,178.8,178.77,0.03]
[1752851198400,17.20472756,178.81,178.77,0.03]
[1752851198605,12.27211395,178.8,178.77,0.03]
[1752851199601,17.20472756,178.81,178.77,0.03]
[1752851200013,11.61211395,178.8,178.77,0.03]
[1752851200317,12.27211395,178.8,178.77,0.03]
[1752851200919,11.61211395,178.78,178.77,0.03]
[1752851201418,12.27211395,178.78,178.77,0.03]
[1752851202205,0.66,178.78,178.77,0.03]
[1752851202613,5.59315397,178.79,178.77,0.03]
[1752851202816,11.61211395,178.79,178.77,0.03]
[1752851202999,11.61211395,178.78,178.77,0.03]
[1752851203421,0.66,178.79,178.77,0.03]
[1752851203817,17.20468557,178.81,178.77,0.03]
[1752851204235,12.27211395,178.8,178.77,0.03]
[1752851205195,6.253029,178.8,178.77,0.03]
[1752851205400,17.86514295,178.8,178.77,0.03]
[1752851205601,5.593029,178.8,178.77,0.03]
[1752851206102,17.20470678,178.81,178.77,0.03]
[1752851206303,5.59259283,178.81,178.77,0.03]
[1752851206530,17.20470678,178.81,178.77,0.03]
[1752851206735,17.88470678,178.81,178.77,0.03]
[1752851207625,6.27299344,178.8,178.77,0.03]
[1752851207810,17.88510739,178.8,178.77,0.03]
[1752851208415,30.36,178.82,178.77,0.03]
[1752851208620,41.97211395,178.84,178.79,11.61211395]
[1752851208826,17.26406072,178.83,178.78,0.71]
[1752851209009,12.29211395,178.82,178.77,11.64211395]
[1752851209222,12.29211395,178.82,178.78,11.61211395]
[1752851209450,0.68,178.82,178.78,11.61211395]
[1752851209633,0.68,178.82,178.79,11.61211395]
[1752851210137,17.26406072,178.83,178.81,11.61211395]
[1752851210138,0.06,178.83,178.81,11.61211395]
[1752851210431,0.06,178.83,178.82,12.32211395]
[1752851210724,0.06,178.83,178.82,11.61211395]
[1752851211467,0.06,178.83,178.79,0.71]
[1752851211468,5.65202881,178.83,178.8,26.0]
[1752851211607,5.59252838,178.81,178.78,1.5111]
[1752851211806,5.59252838,178.81,178.77,0.03]
[1752851211807,12.29211395,178.8,178.77,0.03]
[1752851213311,5.59252838,178.81,178.77,0.03]
[1752851213312,17.20464233,178.81,178.77,0.03]
[1752851213706,5.59252838,178.81,178.77,0.03]
[1752851213909,6.27230183,178.82,178.77,12.35211395]
[1752851214145,11.61211395,178.81,178.77,12.35211395]
[1752851214424,11.61211395,178.81,178.77,0.74]
[1752851214643,11.61211395,178.81,178.77,0.03]
[1752851214803,11.61211395,178.82,178.77,12.35211395]
[1752851215006,47.60408177,178.83,178.78,0.71]
[1752851215234,0.68,178.82,178.77,0.03]
[1752851215555,11.61211395,178.8,178.77,0.03]
[1752851215749,17.20558078,178.78,178.77,0.03]
[1752851216257,17.88558078,178.78,178.77,0.03]
[1752851217434,34.67026475,178.78,178.77,0.03]
[1752851217878,34.67026475,178.78,178.73,0.03]
[1752851217879,16.78468397,178.77,178.73,0.03]
[1752851218045,28.39679792,178.74,178.73,0.03]
[1752851218235,28.39679792,178.74,178.7,0.03]
[1752851218236,16.78468397,178.73,178.7,0.03]
[1752851218439,11.61211395,178.71,178.7,0.03]
[1752851218736,28.39679792,178.71,178.7,0.03]
[1752851219000,29.07679792,178.71,178.7,0.03]
[1752851219844,65.01245568,178.71,178.7,0.03]
[1752851220487,53.40034173,178.71,178.7,0.03]
[1752851220781,65.01245568,178.71,178.7,0.03]
[1752851220955,13.9874209,178.74,178.7,0.03]
[1752851220956,0.68,178.74,178.7,0.03]
[1752851221148,11.61211395,178.72,178.7,0.03]
[1752851221377,11.61211395,178.71,178.7,0.03]
[1752851221562,29.07679792,178.71,178.7,0.03]
[1752851221767,37.50741063,178.71,178.7,0.03]
[1752851221996,23.10448397,178.7,178.69,1e-08]
[1752851222292,16.78468397,178.66,178.64,0.2]
[1752851222466,47.10468397,178.65,178.64,0.2]
[1752851222981,30.32,178.65,178.64,0.2]
[1752851223591,130.15211395,178.66,178.64,0.2]
[1752851223970,29.07679792,178.65,178.64,0.2]
[1752851224676,17.46468397,178.65,178.64,0.2]
[1752851224892,29.07679792,178.65,178.64,0.2]
[1752851225400,66.68891187,178.65,178.64,1e-08]
[1752851225967,60.674335,178.65,178.64,1e-08]
[1752851226273,90.994335,178.65,178.64,1e-08]
[1752851227591,102.60644895,178.65,178.64,1e-08]
[1752851227969,16.78468397,178.61,178.59,0.2]
[1752851228172,58.71679792,178.6,178.59,0.2]
[1752851228367,59.39679792,178.6,178.59,0.2]
[1752851228996,58.71679792,178.6,178.59,0.2]
[1752851229297,59.39679792,178.6,178.59,0.2]
[1752851229873,59.39679792,178.6,178.59,1e-08]
[1752851230175,64.99590206,178.6,178.59,1e-08]
[1752851230813,90.99590206,178.6,178.59,1e-08]
[1752851231493,54.39679792,178.6,178.59,1e-08]
[1752851231695,47.12468397,178.6,178.59,1e-08]
[1752851232097,30.34,178.6,178.59,1e-08]
[1752851232311,16.78468397,178.63,178.59,12.32211396]
[1752851232492,41.95211395,178.62,178.59,1e-08]
[1752851232697,26.0,178.65,178.59,1e-08]
[1752851232698,17.88966516,178.65,178.6,12.32211395]
[1752851232915,47.12468397,178.64,178.61,0.71]
[1752851233299,30.34,178.64,178.61,12.32211395]
[1752851233513,30.34,178.64,178.6,11.61211395]
[1752851233717,30.34,178.64,178.61,11.61211395]
[1752851233890,30.34,178.64,178.61,0.71]
[1752851234306,35.93803191,178.64,178.61,0.71]
[1752851234515,35.93803191,178.64,178.6,11.61211395]
[1752851234906,48.23014586,178.64,178.59,11.61211396]
[1752851235321,35.93803191,178.64,178.6,11.61211395]
[1752851235637,16.78468397,178.6,178.59,1e-08]
[1752851235839,30.32,178.6,178.59,1e-08]
[1752851236326,30.32,178.6,178.59,0.69000001]
[1752851236906,30.32,178.6,178.59,1e-08]
[1752851237504,41.93211395,178.61,178.59,1e-08]
[1752851237712,47.53091311,178.61,178.59,1e-08]
[1752851238202,35.91879916,178.61,178.59,1e-08]
[1752851238401,41.93211395,178.61,178.59,1e-08]
[1752851238633,30.32,178.61,178.59,1e-08]
[1752851238829,30.32,178.61,178.59,0.69000001]
[1752851239136,16.78468397,178.67,178.6,12.30211395]
[1752851239337,28.39679792,178.67,178.63,11.61211395]
[1752851239520,30.32,178.67,178.64,12.30211395]
[1752851239710,30.32,178.67,178.64,0.69]
[1752851239912,41.93211395,178.67,178.64,0.69]
[1752851240132,30.32,178.67,178.63,11.61211395]
[1752851240316,30.32,178.67,178.65,0.69]
[1752851240632,30.32,178.67,178.59,1e-08]
[1752851240633,16.78468397,178.65,178.59,1e-08]
[1752851240851,11.61211395,178.6,178.59,1e-08]
[1752851241013,58.71679792,178.6,178.59,1e-08]
[1752851241435,41.93211395,178.6,178.59,1e-08]
[1752851241933,30.32,178.6,178.59,1e-08]
[1752851242132,41.93211395,178.62,178.59,0.69000001]
[1752851242307,30.32,178.62,178.59,1e-08]
[1752851242517,30.32,178.62,178.6,0.69]
[1752851242717,41.93211395,178.62,178.59,1e-08]
[1752851242916,41.93211395,178.62,178.59,0.69000001]
[1752851243350,11.61211395,178.61,178.59,0.69000001]
[1752851243504,11.61211395,178.61,178.59,1e-08]
[1752851243708,5.59822169,178.63,178.59,1e-08]
[1752851243952,55.09679792,178.6,178.59,1e-08]
[1752851244122,73.80468397,178.6,178.59,1e-08]
[1752851244431,91.01590206,178.6,178.59,1e-08]
[1752851244643,91.01590206,178.6,178.57,0.03]
[1752851244847,28.39679792,178.58,178.57,0.03]
[1752851245161,58.71679792,178.58,178.57,0.03]
[1752851245372,59.41679792,178.58,178.57,0.03]
[1752851246020,58.71679792,178.58,178.57,0.03]
[1752851246417,64.31652913,178.58,178.57,0.03]
[1752851247148,65.01652913,178.58,178.57,0.03]
[1752851247721,64.31652913,178.58,178.57,0.03]
[1752851247954,65.01652913,178.58,178.57,0.03]
[1752851248631,16.78468397,178.57,178.54,0.06]
[1752851248834,66.00891187,178.55,178.54,0.06]
[1752851249135,16.78468397,178.54,178.51,0.06]
[1752851249321,28.39679792,178.52,178.51,0.06]
[1752851249521,58.71679792,178.52,178.51,0.06]
[1752851249722,59.41679792,178.52,178.51,0.06]
[1752851250150,59.41679792,178.52,178.44,7.6197]
[1752851250347,11.61211395,178.45,178.44,1.5861]
[1752851250723,11.61211395,178.45,178.41,0.75]
[1752851250931,11.61211395,178.43,178.41,0.75]
[1752851251134,11.61211395,178.42,178.41,0.06]
[1752851251720,16.78468397,178.43,178.41,0.06]
[1752851251924,41.93211395,178.44,178.41,0.75]
[1752851252150,11.61211395,178.42,178.41,0.06]
[1752851252372,11.61211395,178.43,178.41,0.06]
[1752851252654,5.60379951,178.46,178.41,0.06]
[1752851252655,30.32,178.46,178.41,0.75]
[1752851252848,58.71679792,178.47,178.42,11.61211395]
[1752851253024,11.61211395,178.45,178.43,0.69]
[1752851253225,11.61211395,178.44,178.41,0.06]
[1752851253426,11.61211395,178.42,178.41,0.06]
[1752851253624,30.32,178.44,178.41,0.06]
[1752851253858,30.32,178.44,178.41,0.75]
[1752851254031,30.32,178.44,178.42,0.69]
[1752851254235,11.61211395,178.45,178.43,0.69]
[1752851254668,11.61211395,178.44,178.41,0.06]
[1752851255145,30.32,178.44,178.41,0.06]
[1752851255363,11.61211395,178.43,178.41,0.06]
[1752851255532,11.61211395,178.43,178.41,0.75]
[1752851256145,0.7,178.47,178.42,0.69]
[1752851256146,22.38789835,178.47,178.42,0.69]
[1752851256350,41.93211395,178.45,178.42,0.69]
[1752851256581,41.93211395,178.45,178.43,0.69]
[1752851256755,16.78468397,178.47,178.44,0.69]
[1752851256756,30.32,178.47,178.44,0.69]
[1752851256943,30.32,178.47,178.45,0.69]
[1752851257139,11.61211395,178.47,178.42,11.61211395]
[1752851257338,11.61211395,178.45,178.41,11.67211395]
[1752851257668,11.61211395,178.45,178.42,0.69]
[1752851257953,11.61211395,178.43,178.41,0.06]
[1752851258247,11.61211395,178.42,178.41,0.06]
[1752851258657,28.39679792,178.42,178.41,0.06]
[1752851258834,29.09679792,178.42,178.41,0.06]
[1752851260359,46.3136647,178.42,178.41,0.06]
[1752851260958,34.70155075,178.42,178.41,0.06]
[1752851261354,46.3136647,178.42,178.41,0.06]
[1752851261583,54.39679792,178.39,178.38,3.0]
[1752851261775,84.71679792,178.39,178.37,3.0]
[1752851261955,11.61211395,178.38,178.37,3.0]
[1752851262375,34.00280756,178.38,178.37,3.0]
[1752851262879,34.00280756,178.38,178.36,0.2]
[1752851263060,67.93211395,178.37,178.36,0.2]
[1752851263447,37.61211395,178.37,178.36,0.2]
[1752851263647,67.93211395,178.37,178.36,0.2]
[1752851263850,37.61211395,178.37,178.36,0.2]
[1752851264051,26.0,178.38,178.36,0.2]
[1752851264281,30.32,178.37,178.36,0.2]
[1752851264467,47.53843788,178.37,178.36,0.2]
[1752851264862,64.32312185,178.37,178.36,0.2]
[1752851265758,16.78468397,178.36,178.33,0.06]
[1752851265959,28.39679792,178.34,178.33,0.06]
[1752851266682,34.00406493,178.34,178.33,0.06]
[1752851267482,59.63434642,178.34,178.3,3.0]
[1752851267791,66.00891187,178.31,178.3,3.0]
[1752851268009,96.84891187,178.31,178.3,3.0]
[1752851268309,66.00891187,178.31,178.3,3.0]
[1752851268524,85.23679792,178.31,178.3,3.0]
[1752851268813,102.45712229,178.31,178.3,3.0]
[1752851269013,71.61712229,178.31,178.3,3.0]
[1752851269224,90.84500834,178.31,178.3,3.0]
[1752851269382,90.82500834,178.31,178.3,3.0]
[1752851269582,42.78468397,178.31,178.3,3.0]
[1752851269784,11.61211395,178.31,178.3,3.68]
[1752851270004,7.2116918,178.35,178.3,5.2177]
[1752851270005,11.61211395,178.33,178.3,5.2177]
[1752851270190,7.2116918,178.35,178.31,12.29211395]
[1752851270398,7.2116918,178.35,178.32,12.29211395]
[1752851270612,7.2116918,178.35,178.33,0.68]
[1752851270987,7.2116918,178.35,178.34,0.68]
[1752851271503,22.39009948,178.4,178.34,0.68]
[1752851271504,11.61211395,178.4,178.34,12.29211395]
[1752851271731,11.61211395,178.41,178.36,11.61211395]
[1752851271929,30.86,178.42,178.37,0.68]
[1752851272230,11.61211395,178.41,178.38,0.68]
[1752851272442,11.61211395,178.41,178.36,11.61211395]
[1752851272611,48.07699565,178.42,178.39,0.68]
[1752851273813,30.86,178.42,178.4,0.68]
[1752851274017,11.61211395,178.45,178.41,0.68]
[1752851274229,30.8,178.44,178.42,0.68]
[1752851274833,42.41211395,178.44,178.42,0.68]
[1752851275043,42.41211395,178.44,178.4,13.22881395]